[Event "World Women Teams Championship"]
[Site "Sitges, Spain"]
[Date "2021.09.27"]
[Round "2.3"]
[White "Shuvalova Polina (CFR)"]
[Black "Benmesbah Natacha (FRA)"]
[Result "1-0"]
[TimeControl "40+10"]
[WhiteElo "2383"]
[BlackElo "2193"]

1. e4 {[%clk 00:45:18]} {[%emt 00:00:02]} c5 {[%clk 00:45:19]} {[%emt
00:00:02]} 2. Nf3 {[%clk 00:45:26]} {[%emt 00:00:02]} Nc6 {[%clk 00:45:27]}
{[%emt 00:00:02]} 3. Bb5 {[%clk 00:45:34]} {[%emt 00:00:02]} g6 {[%clk
00:45:33]} {[%emt 00:00:03]} 4. Bxc6 {[%clk 00:45:40]} {[%emt 00:00:05]} dxc6
{[%clk 00:45:41]} {[%emt 00:00:01]} 5. d3 {[%clk 00:45:47]} {[%emt 00:00:03]}
Bg7 {[%clk 00:45:39]} {[%emt 00:00:13]} 6. h3 {[%clk 00:45:53]} {[%emt
00:00:04]} Nf6 {[%clk 00:44:54]} {[%emt 00:00:55]} 7. Bd2 {[%clk 00:45:50]}
{[%emt 00:00:13]} O-O {[%clk 00:44:00]} {[%emt 00:01:04]} 8. Bc3 {[%emt
00:04:54]} c4 {[%clk 00:36:16]} {[%emt 00:03:02]} 9. e5 {[%clk 00:44:56]}
{[%emt 00:01:12]} Nd5 {[%clk 00:36:24]} {[%emt 00:00:01]} 10. dxc4 {[%clk
00:45:02]} {[%emt 00:00:04]} Nxc3 {[%clk 00:36:32]} {[%emt 00:00:03]} 11. Nxc3
{[%clk 00:44:57]} {[%emt 00:00:14]} Qa5 {[%clk 00:34:42]} {[%emt 00:02:01]} 12.
Qe2 {[%emt 00:05:53]} Qb4 {[%clk 00:31:05]} {[%emt 00:00:54]} 13. O-O-O {[%emt
00:05:31]} Be6 {[%clk 00:28:15]} {[%emt 00:00:50]} 14. Rd4 {[%emt 00:02:04]}
Rfd8 {[%clk 00:26:36]} {[%emt 00:00:10]} 15. a3 {[%clk 00:37:01]} {[%emt
00:01:50]} Qa5 {[%emt 00:02:26]} 16. Rhd1 {[%emt 00:02:23]} Rdb8 {[%clk
00:21:58]} {[%emt 00:01:46]} 17. Kb1 {[%clk 00:27:44]} {[%emt 00:07:59]} a6
{[%clk 00:16:49]} {[%emt 00:05:20]} 18. Ng5 {[%emt 00:05:44]} c5 {[%clk
00:15:36]} {[%emt 00:01:16]} 19. Rh4 {[%clk 00:18:38]} {[%emt 00:03:48]} b5
{[%clk 00:15:44]} {[%emt 00:00:02]} 20. Nxe6 {[%clk 00:18:19]} {[%emt
00:00:30]} fxe6 {[%clk 00:15:52]} {[%emt 00:00:02]} 21. Ne4 {[%clk 00:11:57]}
{[%emt 00:06:31]} b4 {[%clk 00:13:22]} {[%emt 00:02:41]} 22. Qg4 {[%clk
00:11:28]} {[%emt 00:00:38]} Qb6 {[%clk 00:12:18]} {[%emt 00:01:15]} 23. Rd6
{[%clk 00:11:03]} {[%emt 00:00:35]} exd6 {[%clk 00:09:35]} {[%emt 00:02:53]} 24.
Qxe6+ {[%clk 00:11:10]} {[%emt 00:00:02]} Kh8 {[%clk 00:09:43]} {[%emt
00:00:02]} 25. Ng5 {[%clk 00:10:59]} {[%emt 00:00:22]} h6 {[%clk 00:09:32]}
{[%emt 00:00:20]} 26. Qxg6 {[%clk 00:11:00]} {[%emt 00:00:09]} Kg8 {[%clk
00:09:35]} {[%emt 00:00:07]} 27. Qf7+ {[%clk 00:11:07]} {[%emt 00:00:03]} 1-0

[Event "World Women Teams Championship"]
[Site "Sitges, Spain"]
[Date "2021.09.27"]
[Round "2.4"]
[White "Alexieva Silvia (FRA)"]
[Black "Kashlinskaya Alina (CFR)"]
[Result "0-1"]
[TimeControl "40+10"]
[WhiteElo "2277"]
[BlackElo "2367"]

1. d4 {[%clk 00:45:18]} {[%emt 00:00:01]} Nf6 {[%clk 00:45:19]} {[%emt
00:00:02]} 2. Nf3 {[%clk 00:45:25]} {[%emt 00:00:02]} g6 {[%clk 00:45:25]}
{[%emt 00:00:04]} 3. Bf4 {[%clk 00:44:40]} {[%emt 00:00:55]} Bg7 {[%clk
00:45:29]} {[%emt 00:00:06]} 4. h4 {[%clk 00:44:39]} {[%emt 00:00:11]} d5
{[%clk 00:41:37]} {[%emt 00:04:03]} 5. e3 {[%emt 00:00:57]} Bg4 {[%clk
00:40:54]} {[%emt 00:00:05]} 6. Be2 {[%clk 00:44:34]} {[%emt 00:00:15]} c5
{[%emt 00:06:02]} 7. Ne5 {[%clk 00:42:00]} {[%emt 00:00:21]} Bxe2 {[%clk
00:37:27]} {[%emt 00:00:08]} 8. Qxe2 {[%emt 00:01:47]} Qb6 {[%emt 00:00:27]} 9.
c3 {[%clk 00:41:54]} {[%emt 00:00:07]} Nc6 {[%emt 00:03:14]} 10. dxc5 {[%emt
00:00:34]} Qxc5 {[%clk 00:35:21]} {[%emt 00:00:19]} 11. Nd2 {[%emt 00:01:16]}
Nh5 {[%clk 00:33:08]} {[%emt 00:01:13]} 12. Nd3 {[%emt 00:00:31]} Qb6 {[%emt
00:06:03]} 13. Bh2 {[%clk 00:36:31]} {[%emt 00:00:49]} Nf6 {[%emt 00:01:35]} 14.
e4 {[%clk 00:34:15]} {[%emt 00:01:00]} dxe4 {[%clk 00:27:58]} {[%emt 00:00:39]}
15. Nxe4 {[%clk 00:34:00]} {[%emt 00:00:25]} Nxe4 {[%clk 00:27:56]} {[%emt
00:00:13]} 16. Qxe4 {[%clk 00:34:07]} {[%emt 00:00:02]} Rd8 {[%emt 00:07:07]}
17. O-O-O {[%emt 00:02:25]} O-O {[%clk 00:24:44]} {[%emt 00:01:25]} 18. h5
{[%clk 00:26:31]} {[%emt 00:00:32]} Rd7 {[%clk 00:24:44]} {[%emt 00:00:09]} 19.
hxg6 {[%clk 00:25:44]} {[%emt 00:00:57]} hxg6 {[%emt 00:10:20]} 20. Bf4 {[%clk
00:13:15]} {[%emt 00:04:53]} Rfd8 {[%emt 00:02:34]} 21. Bh6 {[%clk 00:12:58]}
{[%emt 00:00:07]} Bf6 {[%clk 00:20:23]} {[%emt 00:00:03]} 22. Kc2 {[%clk
00:12:49]} {[%emt 00:00:18]} Qa5 {[%emt 00:02:33]} 23. a3 {[%emt 00:03:04]} Qb5
{[%clk 00:17:09]} {[%emt 00:00:10]} 24. f4 {[%clk 00:09:59]} {[%emt 00:00:57]}
Nd4+ {[%clk 00:16:13]} {[%emt 00:01:18]} 25. Kb1 {[%clk 00:06:11]} {[%emt
00:03:45]} Nf5 {[%emt 00:03:25]} 0-1

[Event "World Women Teams Championship"]
[Site "Sitges, Spain"]
[Date "2021.09.27"]
[Round "2.5"]
[White "Danielian, Elina"]
[Black "Mammadzada, Gunay"]
[Result "0-1"]
[TimeControl "40+10"]
[WhiteElo "2358"]
[BlackElo "2280"]

1. Nf3 {[%clk 00:45:17]} {[%emt 00:00:02]} d5 {[%clk 00:45:16]} {[%emt
00:00:04]} 2. g3 {[%clk 00:45:21]} {[%emt 00:00:07]} c6 {[%clk 00:45:19]}
{[%emt 00:00:07]} 3. Bg2 {[%clk 00:45:03]} {[%emt 00:00:28]} Bg4 {[%clk
00:45:20]} {[%emt 00:00:08]} 4. c4 {[%clk 00:45:01]} {[%emt 00:00:13]} Nf6
{[%clk 00:42:56]} {[%emt 00:02:34]} 5. Ne5 {[%clk 00:44:22]} {[%emt 00:00:48]}
Be6 {[%clk 00:43:03]} {[%emt 00:00:03]} 6. cxd5 {[%clk 00:44:22]} {[%emt
00:00:10]} Bxd5 {[%clk 00:43:10]} {[%emt 00:00:04]} 7. Nf3 {[%clk 00:44:18]}
{[%emt 00:00:14]} c5 {[%clk 00:43:01]} {[%emt 00:00:18]} 8. Nc3 {[%clk
00:44:02]} {[%emt 00:00:26]} Bc6 {[%clk 00:43:10]} {[%emt 00:00:02]} 9. O-O
{[%clk 00:43:45]} {[%emt 00:00:27]} e6 {[%clk 00:39:12]} {[%emt 00:04:08]} 10.
Re1 {[%clk 00:41:13]} {[%emt 00:02:41]} Be7 {[%clk 00:37:12]} {[%emt 00:02:10]}
11. e4 {[%clk 00:41:03]} {[%emt 00:00:20]} O-O {[%clk 00:32:14]} {[%emt
00:05:09]} 12. d4 {[%clk 00:41:02]} {[%emt 00:00:10]} cxd4 {[%clk 00:28:50]}
{[%emt 00:03:35]} 13. Nxd4 {[%clk 00:40:01]} {[%emt 00:01:10]} Bb4 {[%clk
00:25:48]} {[%emt 00:03:13]} 14. Bf4 {[%clk 00:23:27]} {[%emt 00:16:43]} Re8
{[%clk 00:22:13]} {[%emt 00:03:45]} 15. Nxc6 {[%clk 00:10:47]} {[%emt
00:12:50]} Nxc6 {[%clk 00:22:04]} {[%emt 00:00:19]} 16. Qb3 {[%clk 00:10:20]}
{[%emt 00:00:36]} e5 {[%clk 00:14:48]} {[%emt 00:07:27]} 17. Bg5 {[%clk
00:10:19]} {[%emt 00:00:11]} Bxc3 {[%clk 00:13:35]} {[%emt 00:01:23]} 18. bxc3
{[%clk 00:09:50]} {[%emt 00:00:39]} Na5 {[%clk 00:11:10]} {[%emt 00:02:35]} 19.
Qb5 {[%clk 00:07:00]} {[%emt 00:02:59]} b6 {[%clk 00:10:38]} {[%emt 00:00:44]}
20. Rad1 {[%clk 00:04:05]} {[%emt 00:03:04]} Qe7 {[%clk 00:10:38]} {[%emt
00:00:10]} 21. Bh3 {[%emt 00:04:58]} Red8 {[%emt 00:01:20]} 22. Rd5 {[%clk
00:01:01]} {[%emt 00:01:53]} Rxd5 {[%clk 00:03:48]} {[%emt 00:02:22]} 23. exd5
{[%clk 00:01:10]} {[%emt 00:00:03]} Rd8 {[%clk 00:03:25]} {[%emt 00:00:32]} 24.
f4 {[%clk 00:00:40]} {[%emt 00:00:40]} Qc7 {[%clk 00:01:39]} {[%emt 00:01:55]}
25. Bxf6 {[%clk 00:00:31]} {[%emt 00:00:20]} gxf6 {[%emt 00:00:13]} 26. fxe5
{[%clk 00:00:33]} {[%emt 00:00:02]} Qxc3 {[%clk 00:00:23]} {[%emt 00:01:29]} 27.
Qf1 {[%clk 00:00:31]} {[%emt 00:00:11]} Qd4+ {[%clk 00:00:13]} {[%emt
00:00:21]} 28. Kh1 {[%clk 00:00:29]} {[%emt 00:00:10]} fxe5 {[%clk 00:00:14]}
{[%emt 00:00:11]} 29. Qf5 {[%clk 00:00:16]} {[%emt 00:00:23]} Qxd5+ {[%clk
00:00:16]} {[%emt 00:00:08]} 30. Bg2 {[%clk 00:00:25]} e4 {[%clk 00:00:13]}
{[%emt 00:00:14]} 31. Qg4+ {[%clk 00:00:30]} {[%emt 00:00:04]} Kh8 {[%clk
00:00:22]} {[%emt 00:00:02]} 32. Bxe4 {[%clk 00:00:38]} {[%emt 00:00:02]} Qd6
{[%clk 00:00:11]} {[%emt 00:00:21]} 33. Qh5 {[%clk 00:00:20]} {[%emt 00:00:26]}
h6 {[%clk 00:00:11]} {[%emt 00:00:11]} 34. Qxf7 {[%clk 00:00:24]} {[%emt
00:00:06]} Rd7 {[%clk 00:00:18]} {[%emt 00:00:04]} 35. Qf5 {[%clk 00:00:13]}
{[%emt 00:00:20]} Nc4 {[%clk 00:00:12]} {[%emt 00:00:16]} 36. Qh5 {[%clk
00:00:11]} {[%emt 00:00:12]} Re7 {[%clk 00:00:15]} {[%emt 00:00:08]} 37. Rd1
{[%clk 00:00:14]} {[%emt 00:00:07]} Qf6 {[%clk 00:00:13]} {[%emt 00:00:12]} 38.
Qg4 {[%clk 00:00:16]} {[%emt 00:00:07]} Re8 {[%clk 00:00:15]} {[%emt 00:00:08]}
39. Qg6 {[%clk 00:00:15]} {[%emt 00:00:12]} Qxg6 {[%clk 00:00:18]} {[%emt
00:00:07]} 40. Bxg6 {[%clk 00:00:24]} {[%emt 00:00:01]} Re7 {[%clk 00:00:16]}
{[%emt 00:00:12]} 41. h4 {[%clk 00:00:28]} {[%emt 00:00:06]} Kg7 {[%clk
00:00:18]} {[%emt 00:00:08]} 42. h5 {[%clk 00:00:30]} {[%emt 00:00:08]} Ne5
{[%clk 00:00:26]} {[%emt 00:00:01]} 43. Bf5 {[%clk 00:00:36]} {[%emt 00:00:03]}
Kf6 {[%clk 00:00:24]} {[%emt 00:00:13]} 44. g4 {[%clk 00:00:39]} {[%emt
00:00:08]} Kg5 {[%clk 00:00:32]} {[%emt 00:00:02]} 45. Rd6 {[%clk 00:00:31]}
{[%emt 00:00:17]} Rc7 {[%clk 00:00:16]} {[%emt 00:00:27]} 46. Kg2 {[%clk
00:00:34]} {[%emt 00:00:07]} Rc4 {[%clk 00:00:19]} {[%emt 00:00:07]} 47. Kh3
{[%clk 00:00:11]} {[%emt 00:00:32]} Rc3+ {[%clk 00:00:22]} {[%emt 00:00:07]} 48.
Kg2 {[%clk 00:00:21]} Ra3 {[%clk 00:00:24]} {[%emt 00:00:08]} 49. Be6 {[%clk
00:00:14]} {[%emt 00:00:16]} Nxg4 {[%clk 00:00:13]} {[%emt 00:00:21]} 50. Rd5+
{[%clk 00:00:15]} {[%emt 00:00:09]} Kh4 {[%clk 00:00:17]} {[%emt 00:00:07]} 51.
Rd4 {[%clk 00:00:15]} {[%emt 00:00:09]} Rg3+ {[%clk 00:00:26]} {[%emt
00:00:02]} 52. Kf1 {[%clk 00:00:22]} {[%emt 00:00:02]} Kxh5 {[%emt 00:00:11]}
53. Rd7 {[%clk 00:00:14]} {[%emt 00:00:18]} Ra3 {[%clk 00:00:11]} {[%emt
00:00:24]} 54. Rd5+ {[%clk 00:00:17]} {[%emt 00:00:07]} Kh4 {[%clk 00:00:20]}
{[%emt 00:00:02]} 55. Rd4 {[%clk 00:00:25]} {[%emt 00:00:01]} h5 {[%clk
00:00:30]} 56. Kg2 {[%clk 00:00:13]} {[%emt 00:00:22]} Rg3+ {[%clk 00:00:36]}
{[%emt 00:00:03]} 57. Kf1 {[%clk 00:00:23]} {[%emt 00:00:01]} Re3 {[%clk
00:00:44]} 58. Bb3 {[%clk 00:00:26]} {[%emt 00:00:08]} Kg3 {[%clk 00:00:51]}
{[%emt 00:00:03]} 59. Rd1 {[%clk 00:00:21]} {[%emt 00:00:25]} h4 {[%clk
00:01:02]} {[%emt 00:00:09]} 60. Bd5 {[%clk 00:00:20]} {[%emt 00:00:11]} Nh2+
{[%clk 00:00:46]} {[%emt 00:00:26]} 61. Kg1 {[%clk 00:00:27]} {[%emt 00:00:03]}
Nf3+ {[%clk 00:00:54]} {[%emt 00:00:02]} 62. Bxf3 {[%clk 00:00:12]} {[%emt
00:00:25]} Rxf3 {[%clk 00:00:52]} {[%emt 00:00:12]} 63. Rd2 {[%clk 00:00:12]}
{[%emt 00:00:10]} h3 {[%clk 00:00:56]} {[%emt 00:00:05]} 64. Rd1 {[%clk
00:00:13]} {[%emt 00:00:09]} b5 {[%emt 00:00:26]} 65. Rc1 {[%clk 00:00:11]}
{[%emt 00:00:07]} b4 {[%clk 00:00:45]} {[%emt 00:00:10]} 66. Rd1 {[%clk
00:00:18]} {[%emt 00:00:03]} a5 {[%clk 00:00:54]} 67. Rb1 {[%clk 00:00:23]}
{[%emt 00:00:05]} Rd3 {[%clk 00:00:42]} {[%emt 00:00:22]} 68. Re1 {[%clk
00:00:25]} {[%emt 00:00:08]} Rd2 {[%emt 00:00:10]} 69. Re3+ {[%clk 00:00:23]}
{[%emt 00:00:08]} Kf4 {[%clk 00:00:55]} {[%emt 00:00:01]} 70. Rxh3 {[%clk
00:00:27]} {[%emt 00:00:05]} Rxa2 {[%clk 00:01:03]} {[%emt 00:00:02]} 71. Kf1
{[%clk 00:00:36]} {[%emt 00:00:01]} Rb2 {[%clk 00:00:52]} {[%emt 00:00:21]} 72.
Ke1 {[%clk 00:00:45]} a4 {[%clk 00:00:51]} {[%emt 00:00:11]} 73. Kd1 {[%clk
00:00:54]} a3 {[%clk 00:01:01]} 74. Kc1 {[%clk 00:01:03]} Ke4 {[%clk 00:01:04]}
{[%emt 00:00:06]} 75. Rg3 {[%clk 00:01:04]} {[%emt 00:00:09]} Kd4 {[%clk
00:01:13]} {[%emt 00:00:01]} 76. Rh3 {[%clk 00:01:14]} {[%emt 00:00:01]} Kc4
{[%clk 00:01:16]} {[%emt 00:00:07]} 77. Rg3 {[%clk 00:01:16]} {[%emt 00:00:07]}
Kb5 {[%clk 00:01:11]} {[%emt 00:00:15]} 78. Rh3 {[%clk 00:01:03]} {[%emt
00:00:23]} Ka4 {[%clk 00:01:16]} {[%emt 00:00:04]} 79. Rg3 {[%clk 00:01:07]}
{[%emt 00:00:07]} Rb3 {[%clk 00:01:11]} {[%emt 00:00:13]} 80. Rg8 {[%clk
00:00:54]} {[%emt 00:00:24]} Rc3+ {[%clk 00:01:14]} {[%emt 00:00:08]} 81. Kb1
{[%clk 00:00:55]} {[%emt 00:00:09]} Rc4 {[%emt 00:00:21]} 82. Rg7 {[%clk
00:00:32]} {[%emt 00:00:33]} b3 {[%clk 00:00:43]} {[%emt 00:00:31]} 83. Ra7+
{[%clk 00:00:27]} {[%emt 00:00:15]} Kb4 {[%clk 00:00:52]} {[%emt 00:00:02]} 84.
Rb7+ {[%clk 00:00:36]} Kc3 {[%clk 00:01:01]} 85. Ka1 {[%clk 00:00:11]} {[%emt
00:00:36]} Kc2 {[%clk 00:00:55]} {[%emt 00:00:15]} 86. Rb8 {[%clk 00:00:12]}
{[%emt 00:00:09]} Rc3 {[%clk 00:00:47]} {[%emt 00:00:18]} 87. Rb7 {[%clk
00:00:13]} {[%emt 00:00:09]} Kc1 {[%clk 00:00:54]} {[%emt 00:00:03]} 88. Rb8
{[%clk 00:00:14]} {[%emt 00:00:09]} b2+ {[%clk 00:00:50]} {[%emt 00:00:14]} 89.
Ka2 {[%clk 00:00:22]} {[%emt 00:00:03]} Rc2 {[%clk 00:00:59]} {[%emt 00:00:02]}
0-1

[Event "World Women Teams Championship"]
[Site "Sitges, Spain"]
[Date "2021.09.27"]
[Round "2.6"]
[White "Mammadova, Gulnar"]
[Black "Mkrtchian, Lilit"]
[Result "1-0"]
[TimeControl "40+10"]
[WhiteElo "2406"]
[BlackElo "2306"]

1. e4 {[%clk 00:45:17]} {[%emt 00:00:02]} e6 {[%clk 00:45:16]} {[%emt
00:00:04]} 2. d4 {[%clk 00:45:24]} {[%emt 00:00:04]} d5 {[%clk 00:45:24]}
{[%emt 00:00:02]} 3. e5 {[%clk 00:45:32]} {[%emt 00:00:02]} c5 {[%clk
00:44:40]} {[%emt 00:00:53]} 4. c3 {[%clk 00:45:39]} {[%emt 00:00:03]} Bd7
{[%clk 00:42:20]} {[%emt 00:02:29]} 5. Nf3 {[%clk 00:45:16]} {[%emt 00:00:35]}
Nc6 {[%clk 00:40:54]} {[%emt 00:01:35]} 6. Bd3 {[%clk 00:44:59]} {[%emt
00:00:27]} cxd4 {[%clk 00:40:16]} {[%emt 00:00:48]} 7. O-O {[%clk 00:44:06]}
{[%emt 00:01:03]} dxc3 {[%clk 00:36:55]} {[%emt 00:03:31]} 8. Nxc3 {[%clk
00:44:13]} {[%emt 00:00:04]} Nge7 {[%clk 00:36:52]} {[%emt 00:00:12]} 9. Bg5
{[%clk 00:40:52]} {[%emt 00:03:31]} Qb8 {[%clk 00:33:35]} {[%emt 00:03:27]} 10.
Re1 {[%clk 00:40:03]} {[%emt 00:00:59]} Ng6 {[%clk 00:33:33]} {[%emt 00:00:12]}
11. Bxg6 {[%clk 00:36:36]} {[%emt 00:03:38]} fxg6 {[%clk 00:31:49]} {[%emt
00:01:54]} 12. Nxd5 {[%clk 00:32:53]} {[%emt 00:03:53]} Bc8 {[%clk 00:11:04]}
{[%emt 00:20:54]} 13. Nf4 {[%clk 00:29:57]} {[%emt 00:03:06]} Qc7 {[%clk
00:07:50]} {[%emt 00:03:24]} 14. Rc1 {[%clk 00:28:52]} {[%emt 00:01:15]} Qb6
{[%clk 00:06:45]} {[%emt 00:01:15]} 15. Re3 {[%clk 00:26:51]} {[%emt 00:02:13]}
Bc5 {[%clk 00:02:40]} {[%emt 00:04:15]} 16. Rb3 {[%clk 00:25:36]} {[%emt
00:01:24]} Qa5 {[%clk 00:02:48]} {[%emt 00:00:02]} 17. Qd3 {[%clk 00:19:15]}
{[%emt 00:06:31]} Bb6 {[%clk 00:02:52]} {[%emt 00:00:06]} 18. Nxg6 {[%emt
00:03:54]} hxg6 {[%clk 00:02:41]} {[%emt 00:00:18]} 19. Qxg6+ {[%clk 00:15:42]}
{[%emt 00:00:02]} Kf8 {[%clk 00:02:42]} {[%emt 00:00:09]} 20. Bd2 {[%clk
00:14:35]} {[%emt 00:01:16]} Qa4 {[%clk 00:01:23]} {[%emt 00:01:30]} 21. Bb4+
{[%clk 00:12:28]} {[%emt 00:02:17]} Nxb4 {[%clk 00:01:12]} {[%emt 00:00:21]} 22.
Ng5 {[%clk 00:12:37]} {[%emt 00:00:02]} Qe8 {[%clk 00:00:15]} {[%emt 00:01:05]}
23. Rf3+ {[%clk 00:12:19]} {[%emt 00:00:28]} Ke7 {[%clk 00:00:23]} {[%emt
00:00:02]} 24. Qxg7+ {[%clk 00:12:19]} {[%emt 00:00:11]} Kd8 {[%clk 00:00:32]}
25. Nf7+ {[%clk 00:12:21]} {[%emt 00:00:08]} 1-0

[Event "World Women Teams Championship"]
[Site "Sitges, Spain"]
[Date "2021.09.27"]
[Round "2.7"]
[White "Sargsyan, Anna M."]
[Black "Mamedjarova, Turkan"]
[Result "1-0"]
[TimeControl "40+10"]
[WhiteElo "2283"]
[BlackElo "2243"]

1. d4 {[%clk 00:45:08]} {[%emt 00:00:11]} Nf6 {[%clk 00:45:11]} {[%emt
00:00:10]} 2. c4 {[%clk 00:45:12]} {[%emt 00:00:06]} e6 {[%clk 00:45:18]}
{[%emt 00:00:03]} 3. Nf3 {[%clk 00:45:15]} {[%emt 00:00:07]} b6 {[%clk
00:45:14]} {[%emt 00:00:15]} 4. g3 {[%clk 00:45:19]} {[%emt 00:00:06]} Ba6
{[%clk 00:45:13]} {[%emt 00:00:11]} 5. Qc2 {[%clk 00:45:24]} {[%emt 00:00:04]}
Bb7 {[%clk 00:45:12]} {[%emt 00:00:11]} 6. Bg2 {[%clk 00:45:31]} {[%emt
00:00:03]} c5 {[%clk 00:44:40]} {[%emt 00:00:43]} 7. d5 {[%clk 00:45:14]}
{[%emt 00:00:27]} exd5 {[%clk 00:44:40]} {[%emt 00:00:10]} 8. cxd5 {[%clk
00:45:19]} {[%emt 00:00:04]} Nxd5 {[%clk 00:44:42]} {[%emt 00:00:09]} 9. O-O
{[%clk 00:45:20]} {[%emt 00:00:08]} Be7 {[%clk 00:44:34]} {[%emt 00:00:17]} 10.
Rd1 {[%clk 00:45:13]} {[%emt 00:00:18]} Nc6 {[%clk 00:43:41]} {[%emt 00:01:04]}
11. a3 {[%clk 00:45:19]} {[%emt 00:00:03]} Nf6 {[%clk 00:42:46]} {[%emt
00:01:05]} 12. Bf4 {[%clk 00:43:30]} {[%emt 00:01:59]} d5 {[%clk 00:41:15]}
{[%emt 00:01:42]} 13. Nc3 {[%clk 00:42:03]} {[%emt 00:01:36]} O-O {[%clk
00:38:43]} {[%emt 00:02:43]} 14. e3 {[%clk 00:41:43]} {[%emt 00:00:29]} h6
{[%clk 00:37:38]} {[%emt 00:01:15]} 15. Nh4 {[%clk 00:38:30]} {[%emt 00:03:23]}
Qc8 {[%clk 00:28:39]} {[%emt 00:09:10]} 16. Nf5 {[%clk 00:36:28]} {[%emt
00:02:10]} Kh8 {[%clk 00:26:12]} {[%emt 00:02:38]} 17. Nxd5 {[%clk 00:33:38]}
{[%emt 00:03:01]} Nxd5 {[%clk 00:25:56]} {[%emt 00:00:26]} 18. Bxd5 {[%clk
00:33:38]} {[%emt 00:00:09]} Rd8 {[%clk 00:21:16]} {[%emt 00:04:50]} 19. Bxf7
{[%clk 00:23:26]} {[%emt 00:10:22]} Rf8 {[%clk 00:19:22]} {[%emt 00:02:03]} 20.
Bg6 {[%clk 00:21:45]} {[%emt 00:01:51]} Rf6 {[%clk 00:19:04]} {[%emt 00:00:28]}
21. Nxe7 {[%clk 00:21:33]} {[%emt 00:00:23]} Nxe7 {[%clk 00:19:10]} {[%emt
00:00:04]} 22. Be4 {[%clk 00:21:40]} {[%emt 00:00:02]} Bxe4 {[%clk 00:18:31]}
{[%emt 00:00:50]} 23. Qxe4 {[%clk 00:21:43]} {[%emt 00:00:07]} Ng6 {[%clk
00:17:38]} {[%emt 00:01:03]} 24. Bd6 {[%clk 00:19:45]} {[%emt 00:02:08]} Qg8
{[%clk 00:16:01]} {[%emt 00:01:47]} 25. b4 {[%clk 00:19:01]} {[%emt 00:00:55]}
c4 {[%clk 00:14:51]} {[%emt 00:01:20]} 26. b5 {[%clk 00:17:16]} {[%emt
00:01:55]} Rc8 {[%clk 00:13:19]} {[%emt 00:01:41]} 27. Rac1 {[%clk 00:17:03]}
{[%emt 00:00:23]} Qf7 {[%clk 00:13:04]} {[%emt 00:00:26]} 28. f4 {[%clk
00:14:40]} {[%emt 00:02:32]} Re6 {[%clk 00:12:38]} {[%emt 00:00:36]} 29. Qd5
{[%clk 00:13:31]} {[%emt 00:01:18]} Qe8 {[%clk 00:12:34]} {[%emt 00:00:15]} 30.
Bb4 {[%clk 00:11:47]} {[%emt 00:01:53]} Rxe3 {[%clk 00:11:33]} {[%emt
00:01:12]} 31. Rxc4 {[%clk 00:11:20]} {[%emt 00:00:37]} Rxc4 {[%clk 00:11:17]}
{[%emt 00:00:27]} 32. Qxc4 {[%clk 00:11:27]} {[%emt 00:00:03]} Kh7 {[%clk
00:10:43]} {[%emt 00:00:45]} 33. Qc6 {[%clk 00:10:22]} {[%emt 00:01:14]} Qf7
{[%clk 00:08:17]} {[%emt 00:02:36]} 34. Qd5 {[%clk 00:10:28]} {[%emt 00:00:05]}
Qe8 {[%clk 00:06:10]} {[%emt 00:02:17]} 35. Rf1 {[%clk 00:07:18]} {[%emt
00:03:18]} h5 {[%clk 00:05:58]} {[%emt 00:00:22]} 36. Qxh5+ {[%clk 00:07:04]}
{[%emt 00:00:25]} Kg8 {[%clk 00:06:08]} 37. f5 {[%clk 00:06:14]} {[%emt
00:01:00]} Re2 {[%clk 00:06:02]} {[%emt 00:00:17]} 38. fxg6 {[%clk 00:05:35]}
{[%emt 00:00:48]} Qe3+ {[%clk 00:06:03]} {[%emt 00:00:09]} 39. Kh1 {[%clk
00:05:43]} {[%emt 00:00:02]} Qe4+ {[%clk 00:06:12]} 40. Qf3 {[%clk 00:05:52]}
{[%emt 00:00:03]} 1-0